[Event "Early-Titled-Tuesday-Blitz-April-02-2024"]
[Site "Chess.com"]
[Date "2024.04.02"]
[Round "5"]
[White "MagnusCarlsen"]
[Black "Lukianoo"]
[Result "1-0"]
[WhiteElo "3231"]
[BlackElo "2817"]
[TimeControl "180+1"]
[EndTime "8:53:37 PDT"]
[Termination "MagnusCarlsen won by resignation"]

1. e4 {[%clk 0:03:00.9]} 1... c6 {[%clk 0:02:53.3]} 2. Bc4 {[%clk 0:02:59.4]}
2... d5 {[%clk 0:02:53.1]} 3. Bb3 {[%clk 0:03:00.1]} 3... dxe4 {[%clk
0:02:48.8]} 4. Qh5 {[%clk 0:02:59.4]} 4... g6 {[%clk 0:02:34.2]} 5. Qh4 {[%clk
0:02:59.5]} 5... Nf6 {[%clk 0:02:31.5]} 6. Nc3 {[%clk 0:02:59.5]} 6... Bg7
{[%clk 0:02:26.2]} 7. f3 {[%clk 0:02:59.3]} 7... Nbd7 {[%clk 0:02:05.8]} 8. fxe4
{[%clk 0:02:59]} 8... Nc5 {[%clk 0:02:05.4]} 9. Nf3 {[%clk 0:02:56.8]} 9... Nxb3
{[%clk 0:02:04.6]} 10. axb3 {[%clk 0:02:56.3]} 10... h6 {[%clk 0:01:44.8]} 11.
d3 {[%clk 0:02:56.1]} 11... g5 {[%clk 0:01:44.1]} 12. Qf2 {[%clk 0:02:56.1]}
12... Ng4 {[%clk 0:01:35.3]} 13. Qg3 {[%clk 0:02:53.8]} 13... Qd6 {[%clk
0:01:30.5]} 14. Qxd6 {[%clk 0:02:48.7]} 14... exd6 {[%clk 0:01:31.4]} 15. h3
{[%clk 0:02:47.3]} 15... Ne5 {[%clk 0:01:29.5]} 16. Nxe5 {[%clk 0:02:45.3]}
16... Bxe5 {[%clk 0:01:28.6]} 17. Be3 {[%clk 0:02:45.9]} 17... a6 {[%clk
0:01:20.8]} 18. Na4 {[%clk 0:02:42.1]} 18... O-O {[%clk 0:01:11.9]} 19. g4
{[%clk 0:02:38.1]} 19... Be6 {[%clk 0:01:08.2]} 20. Ke2 {[%clk 0:02:33.8]} 20...
d5 {[%clk 0:00:59.8]} 21. d4 {[%clk 0:02:28.1]} 21... Bc7 {[%clk 0:00:55.8]} 22.
Nc5 {[%clk 0:02:22.6]} 22... dxe4 {[%clk 0:00:52.8]} 23. Nxe6 {[%clk 0:02:22.5]}
23... fxe6 {[%clk 0:00:51.9]} 24. h4 {[%clk 0:02:23.3]} 24... Bf4 {[%clk
0:00:43.5]} 25. hxg5 {[%clk 0:02:23.4]} 25... hxg5 {[%clk 0:00:44.2]} 26. Rh6
{[%clk 0:02:23.7]} 26... Kg7 {[%clk 0:00:28.2]} 27. Rxe6 {[%clk 0:02:19.3]}
27... Rae8 {[%clk 0:00:28.1]} 28. Rxe8 {[%clk 0:02:16.6]} 28... Rxe8 {[%clk
0:00:29]} 29. Rf1 {[%clk 0:02:13.3]} 29... Rf8 {[%clk 0:00:28.2]} 30. c4 {[%clk
0:02:13.4]} 30... Kg6 {[%clk 0:00:23.5]} 31. d5 {[%clk 0:02:11.7]} 31... cxd5
{[%clk 0:00:24.4]} 32. cxd5 {[%clk 0:02:11.9]} 32... Bd6 {[%clk 0:00:24.5]} 33.
Rxf8 {[%clk 0:02:10.4]} 33... Bxf8 {[%clk 0:00:25.4]} 34. Bd4 {[%clk 0:02:10.1]}
34... Bd6 {[%clk 0:00:19.2]} 35. Ke3 {[%clk 0:02:10.3]} 35... Bf4+ {[%clk
0:00:18.3]} 36. Kxe4 {[%clk 0:02:11.2]} 36... Bd6 {[%clk 0:00:16.2]} 37. Be5
{[%clk 0:02:11]} 37... Bb4 {[%clk 0:00:16]} 38. d6 {[%clk 0:02:10]} 38... Kf7
{[%clk 0:00:16.4]} 39. Kf5 {[%clk 0:02:10.1]} 39... Bd2 {[%clk 0:00:14.8]} 40.
Bf6 {[%clk 0:02:10.4]} 40... Ke8 {[%clk 0:00:15]} 41. Ke6 {[%clk 0:02:10.9]} 1-0

[Event "Early-Titled-Tuesday-Blitz-April-02-2024"]
[Site "Chess.com"]
[Date "2024.04.02"]
[Round "5"]
[White "Cheer_Down"]
[Black "NovoselovRoman"]
[Result "1-0"]
[WhiteElo "2445"]
[BlackElo "2586"]
[TimeControl "180+1"]
[EndTime "8:53:48 PDT"]
[Termination "Cheer_Down won by resignation"]

1. e4 {[%clk 0:03:00.9]} 1... e6 {[%clk 0:02:58]} 2. d4 {[%clk 0:02:59.9]} 2...
d5 {[%clk 0:02:52.4]} 3. Nc3 {[%clk 0:03:00]} 3... Nf6 {[%clk 0:02:51.9]} 4. e5
{[%clk 0:02:59.6]} 4... Nfd7 {[%clk 0:02:52.1]} 5. f4 {[%clk 0:03:00]} 5... c5
{[%clk 0:02:52.6]} 6. Nf3 {[%clk 0:03:00.1]} 6... Nc6 {[%clk 0:02:53.1]} 7. Be3
{[%clk 0:02:59.6]} 7... a6 {[%clk 0:02:51.1]} 8. Qd2 {[%clk 0:02:57.3]} 8... b5
{[%clk 0:02:51.2]} 9. Be2 {[%clk 0:02:57]} 9... b4 {[%clk 0:02:48.4]} 10. Nd1
{[%clk 0:02:56.5]} 10... a5 {[%clk 0:02:47.6]} 11. O-O {[%clk 0:02:50.9]} 11...
g6 {[%clk 0:02:47.5]} 12. c4 {[%clk 0:02:43.6]} 12... dxc4 {[%clk 0:02:42.1]}
13. Bxc4 {[%clk 0:02:42.7]} 13... Ba6 {[%clk 0:02:42.4]} 14. Bxa6 {[%clk
0:02:37.7]} 14... Rxa6 {[%clk 0:02:43.3]} 15. d5 {[%clk 0:02:34.3]} 15... exd5
{[%clk 0:02:36.8]} 16. Qxd5 {[%clk 0:02:35.2]} 16... Qc7 {[%clk 0:02:22.5]} 17.
Nf2 {[%clk 0:02:14.3]} 17... Be7 {[%clk 0:02:11.8]} 18. e6 {[%clk 0:01:54.3]}
18... fxe6 {[%clk 0:01:56.7]} 19. Qxe6 {[%clk 0:01:54.3]} 19... Ncb8 {[%clk
0:01:54.1]} 20. Qc4 {[%clk 0:01:47.9]} 20... Nb6 {[%clk 0:01:40.1]} 21. Qe4
{[%clk 0:01:08.5]} 21... O-O {[%clk 0:01:33.1]} 22. Rac1 {[%clk 0:01:07.3]}
22... Na4 {[%clk 0:01:31.1]} 23. Ng4 {[%clk 0:00:58.8]} 23... Qc6 {[%clk
0:01:18.7]} 24. Qxe7 {[%clk 0:00:43]} 24... Qe6 {[%clk 0:01:03.4]} 25. Nh6+
{[%clk 0:00:40.6]} 25... Kh8 {[%clk 0:01:02.4]} 26. Qxf8+ {[%clk 0:00:40.8]} 1-0

[Event "Early-Titled-Tuesday-Blitz-April-02-2024"]
[Site "Chess.com"]
[Date "2024.04.02"]
[Round "5"]
[White "kingandqueen2017"]
[Black "rionelG"]
[Result "1-0"]
[WhiteElo "2484"]
[BlackElo "2185"]
[TimeControl "180+1"]
[EndTime "8:53:49 PDT"]
[Termination "kingandqueen2017 won by checkmate"]

1. d4 {[%clk 0:03:00.9]} 1... d5 {[%clk 0:02:59.8]} 2. c4 {[%clk 0:03:00.9]}
2... e6 {[%clk 0:02:59.6]} 3. Nc3 {[%clk 0:02:59.5]} 3... Nf6 {[%clk 0:02:59.7]}
4. Nf3 {[%clk 0:02:58.6]} 4... c6 {[%clk 0:02:59.4]} 5. Bg5 {[%clk 0:02:58.1]}
5... h6 {[%clk 0:02:55.7]} 6. Bh4 {[%clk 0:02:58]} 6... Be7 {[%clk 0:02:48]} 7.
e3 {[%clk 0:02:57.4]} 7... O-O {[%clk 0:02:45.3]} 8. Qc2 {[%clk 0:02:57]} 8...
Nbd7 {[%clk 0:02:33.4]} 9. Bd3 {[%clk 0:02:55.9]} 9... dxc4 {[%clk 0:02:28.5]}
10. Bxc4 {[%clk 0:02:56.8]} 10... b5 {[%clk 0:02:21.3]} 11. Bd3 {[%clk
0:02:56.2]} 11... Bb7 {[%clk 0:02:21.9]} 12. O-O {[%clk 0:02:55.8]} 12... a6
{[%clk 0:02:17.5]} 13. Rfd1 {[%clk 0:02:48.7]} 13... Rc8 {[%clk 0:01:52.1]} 14.
Rac1 {[%clk 0:02:47.9]} 14... Re8 {[%clk 0:01:45.8]} 15. Ne5 {[%clk 0:02:44.6]}
15... Qb6 {[%clk 0:01:34.1]} 16. Bh7+ {[%clk 0:02:25]} 16... Kf8 {[%clk
0:01:30.9]} 17. Nxd7+ {[%clk 0:02:07.1]} 17... Nxd7 {[%clk 0:01:27.5]} 18. Bxe7+
{[%clk 0:02:07.1]} 18... Rxe7 {[%clk 0:01:28.4]} 19. Ne4 {[%clk 0:02:06.2]}
19... Qc7 {[%clk 0:00:59.2]} 20. h4 {[%clk 0:02:03.2]} 20... g6 {[%clk
0:00:51.4]} 21. h5 {[%clk 0:02:03.4]} 21... Kg7 {[%clk 0:00:50.8]} 22. hxg6
{[%clk 0:02:03.3]} 22... fxg6 {[%clk 0:00:51.7]} 23. Bxg6 {[%clk 0:02:03.7]}
23... Kxg6 {[%clk 0:00:49.7]} 24. Nd6+ {[%clk 0:02:03.1]} 24... Kg7 {[%clk
0:00:48.1]} 25. Nxc8 {[%clk 0:02:03.5]} 25... Qxc8 {[%clk 0:00:47.2]} 26. e4
{[%clk 0:01:58.1]} 26... Qf8 {[%clk 0:00:27.4]} 27. Rd3 {[%clk 0:01:57.5]} 27...
Kh8 {[%clk 0:00:27.4]} 28. Rf3 {[%clk 0:01:53.6]} 28... Rf7 {[%clk 0:00:26.4]}
29. Rxf7 {[%clk 0:01:53.3]} 29... Qxf7 {[%clk 0:00:27.3]} 30. Qd2 {[%clk
0:01:53.9]} 30... Qg6 {[%clk 0:00:22.3]} 31. Rc3 {[%clk 0:01:53.6]} 31... Nf8
{[%clk 0:00:10.7]} 32. Rg3 {[%clk 0:01:52.9]} 32... Qxe4 {[%clk 0:00:08.5]} 33.
Qxh6+ {[%clk 0:01:52.8]} 33... Nh7 {[%clk 0:00:07]} 34. Qg7# {[%clk 0:01:51.7]}
1-0

[Event "Early-Titled-Tuesday-Blitz-April-02-2024"]
[Site "Chess.com"]
[Date "2024.04.02"]
[Round "5"]
[White "blitzking1729"]
[Black "zverr1"]
[Result "1-0"]
[WhiteElo "2768"]
[BlackElo "2559"]
[TimeControl "180+1"]
[EndTime "8:53:54 PDT"]
[Termination "blitzking1729 won on time"]

1. Nf3 {[%clk 0:03:00.9]} 1... g6 {[%clk 0:02:57.7]} 2. g3 {[%clk 0:02:57.9]}
2... Bg7 {[%clk 0:02:56.9]} 3. Bg2 {[%clk 0:02:58.8]} 3... Nf6 {[%clk
0:02:55.7]} 4. O-O {[%clk 0:02:59.2]} 4... O-O {[%clk 0:02:56.5]} 5. c4 {[%clk
0:02:59.5]} 5... c6 {[%clk 0:02:56.7]} 6. b3 {[%clk 0:02:57.8]} 6... Ne4 {[%clk
0:02:51.2]} 7. d4 {[%clk 0:02:57.2]} 7... d5 {[%clk 0:02:51.6]} 8. Bb2 {[%clk
0:02:56.7]} 8... a5 {[%clk 0:02:49.2]} 9. Nbd2 {[%clk 0:02:48.6]} 9... Bf5
{[%clk 0:02:46.2]} 10. Nh4 {[%clk 0:02:47.2]} 10... Nxd2 {[%clk 0:02:45.5]} 11.
Qxd2 {[%clk 0:02:48]} 11... Be6 {[%clk 0:02:42.7]} 12. cxd5 {[%clk 0:02:47.7]}
12... cxd5 {[%clk 0:02:28.4]} 13. Nf3 {[%clk 0:02:46.7]} 13... Bf5 {[%clk
0:02:25.7]} 14. Ne5 {[%clk 0:02:40]} 14... Be4 {[%clk 0:02:15.4]} 15. f3 {[%clk
0:02:24.7]} 15... Bf5 {[%clk 0:02:15.2]} 16. Rfc1 {[%clk 0:02:25.2]} 16... Nd7
{[%clk 0:01:53.9]} 17. Nd3 {[%clk 0:02:22.6]} 17... Qb6 {[%clk 0:01:43.2]} 18.
Nc5 {[%clk 0:02:17.2]} 18... e5 {[%clk 0:01:07.9]} 19. e3 {[%clk 0:02:06.5]}
19... Rac8 {[%clk 0:00:41.4]} 20. Nxd7 {[%clk 0:01:57.8]} 20... Bxd7 {[%clk
0:00:41.4]} 21. dxe5 {[%clk 0:01:57.6]} 21... a4 {[%clk 0:00:29.6]} 22. Bd4
{[%clk 0:01:51.9]} 22... Qb5 {[%clk 0:00:26.6]} 23. Bf1 {[%clk 0:01:47.3]} 23...
Rxc1 {[%clk 0:00:16.8]} 24. Rxc1 {[%clk 0:01:48.2]} 24... Ra8 {[%clk 0:00:03.4]}
25. Bxb5 {[%clk 0:01:47.4]} 25... Bxb5 {[%clk 0:00:04.3]} 26. bxa4 {[%clk
0:01:46.1]} 26... Bc4 {[%clk 0:00:04.1]} 27. a5 {[%clk 0:01:45.1]} 27... Bf8
{[%clk 0:00:03.1]} 28. e4 {[%clk 0:01:38.4]} 1-0

[Event "Early-Titled-Tuesday-Blitz-April-02-2024"]
[Site "Chess.com"]
[Date "2024.04.02"]
[Round "5"]
[White "mightysmasher"]
[Black "scarabee43"]
[Result "0-1"]
[WhiteElo "2576"]
[BlackElo "2812"]
[TimeControl "180+1"]
[EndTime "8:53:57 PDT"]
[Termination "scarabee43 won by checkmate"]

1. e4 {[%clk 0:03:00.9]} 1... c5 {[%clk 0:02:59.7]} 2. c3 {[%clk 0:03:00.7]}
2... d5 {[%clk 0:02:57.5]} 3. exd5 {[%clk 0:03:00.6]} 3... Qxd5 {[%clk
0:02:58.3]} 4. d4 {[%clk 0:03:00.8]} 4... Nf6 {[%clk 0:02:58.9]} 5. Nf3 {[%clk
0:03:00.9]} 5... e6 {[%clk 0:02:57]} 6. Na3 {[%clk 0:02:59.7]} 6... Nc6 {[%clk
0:02:54]} 7. Nb5 {[%clk 0:02:59.2]} 7... Qd8 {[%clk 0:02:48.1]} 8. Be2 {[%clk
0:02:51.3]} 8... a6 {[%clk 0:02:47.6]} 9. Na3 {[%clk 0:02:50.7]} 9... cxd4
{[%clk 0:02:42]} 10. Nxd4 {[%clk 0:02:48.3]} 10... Nxd4 {[%clk 0:02:41.2]} 11.
Qxd4 {[%clk 0:02:48.5]} 11... Qxd4 {[%clk 0:02:40.9]} 12. cxd4 {[%clk
0:02:49.4]} 12... b5 {[%clk 0:02:36.8]} 13. Bf3 {[%clk 0:02:46.5]} 13... Ra7
{[%clk 0:02:36.4]} 14. O-O {[%clk 0:02:45.9]} 14... Bb7 {[%clk 0:02:36.1]} 15.
Be2 {[%clk 0:02:44.4]} 15... Be7 {[%clk 0:02:32.3]} 16. Nc2 {[%clk 0:02:42.7]}
16... O-O {[%clk 0:02:30.2]} 17. Be3 {[%clk 0:02:41]} 17... Bd5 {[%clk
0:02:25.8]} 18. Nb4 {[%clk 0:02:39.4]} 18... Bxb4 {[%clk 0:02:25]} 19. a3 {[%clk
0:02:36.5]} 19... Bd6 {[%clk 0:02:23.8]} 20. Rac1 {[%clk 0:02:35.7]} 20... h6
{[%clk 0:02:17]} 21. g4 {[%clk 0:02:29.3]} 21... Rb8 {[%clk 0:02:09.4]} 22. h4
{[%clk 0:02:26.2]} 22... Ba8 {[%clk 0:02:03.1]} 23. d5 {[%clk 0:02:22.8]} 23...
Re7 {[%clk 0:02:00.5]} 24. dxe6 {[%clk 0:02:21.8]} 24... Rxe6 {[%clk 0:02:01]}
25. Rfe1 {[%clk 0:02:15.4]} 25... Rbe8 {[%clk 0:02:00.2]} 26. g5 {[%clk
0:02:12]} 26... hxg5 {[%clk 0:01:59.6]} 27. hxg5 {[%clk 0:02:12.9]} 27... Nd5
{[%clk 0:02:00.1]} 28. Bg4 {[%clk 0:02:12]} 28... Re5 {[%clk 0:01:57.7]} 29. Bd7
{[%clk 0:02:06.1]} 29... Rd8 {[%clk 0:01:55]} 30. Bc6 {[%clk 0:02:02.9]} 30...
Nxe3 {[%clk 0:01:52.7]} 31. fxe3 {[%clk 0:02:03.8]} 31... Rxg5+ {[%clk
0:01:52.5]} 32. Kf1 {[%clk 0:02:03.6]} 32... Rc5 {[%clk 0:01:47.5]} 33. Bxa8
{[%clk 0:01:59.7]} 33... Rxa8 {[%clk 0:01:47.7]} 34. Rcd1 {[%clk 0:01:59.1]}
34... Be5 {[%clk 0:01:47.7]} 35. Re2 {[%clk 0:01:56.9]} 35... Rac8 {[%clk
0:01:47.1]} 36. Rdd2 {[%clk 0:01:54.1]} 36... g6 {[%clk 0:01:46.3]} 37. Rd7
{[%clk 0:01:52.7]} 37... Rc2 {[%clk 0:01:43.9]} 38. Ra7 {[%clk 0:01:50.9]} 38...
Rxb2 {[%clk 0:01:40.2]} 39. Rxb2 {[%clk 0:01:48]} 39... Bxb2 {[%clk 0:01:39.8]}
40. Rxa6 {[%clk 0:01:48]} 40... Rc3 {[%clk 0:01:40.4]} 41. Ke2 {[%clk
0:01:46.4]} 41... Bxa3 {[%clk 0:01:40.4]} 42. Kd2 {[%clk 0:01:45.5]} 42... b4
{[%clk 0:01:40.4]} 43. Rb6 {[%clk 0:01:42.9]} 43... Bc1+ {[%clk 0:01:40.3]} 44.
Kd1 {[%clk 0:01:42.6]} 44... Bxe3 {[%clk 0:01:39.3]} 45. Rxb4 {[%clk 0:01:42.1]}
45... Bg5 {[%clk 0:01:37.7]} 46. Ke2 {[%clk 0:01:41.6]} 46... Kg7 {[%clk
0:01:38.5]} 47. Kf2 {[%clk 0:01:40.2]} 47... Be7 {[%clk 0:01:38.6]} 48. Rb7
{[%clk 0:01:39.6]} 48... Bc5+ {[%clk 0:01:39.1]} 49. Ke2 {[%clk 0:01:38.8]}
49... g5 {[%clk 0:01:39.6]} 50. Rc7 {[%clk 0:01:38.2]} 50... Bd4 {[%clk
0:01:39.1]} 51. Rd7 {[%clk 0:01:37.5]} 51... Be5 {[%clk 0:01:38.8]} 52. Kf2
{[%clk 0:01:33.3]} 52... Kg6 {[%clk 0:01:39]} 53. Rb7 {[%clk 0:01:31.8]} 53...
f6 {[%clk 0:01:39.2]} 54. Rb5 {[%clk 0:01:31.3]} 54... g4 {[%clk 0:01:39.4]} 55.
Kg2 {[%clk 0:01:26]} 55... Kg5 {[%clk 0:01:39.8]} 56. Kg1 {[%clk 0:01:26.4]}
56... Rc2 {[%clk 0:01:40.2]} 57. Rb3 {[%clk 0:01:26]} 57... g3 {[%clk
0:01:39.7]} 58. Rd3 {[%clk 0:01:26.2]} 58... Kg4 {[%clk 0:01:39.9]} 59. Kf1
{[%clk 0:01:22.2]} 59... f5 {[%clk 0:01:35.8]} 60. Kg1 {[%clk 0:01:19.6]} 60...
f4 {[%clk 0:01:36.1]} 61. Rd8 {[%clk 0:01:19.5]} 61... Rc1+ {[%clk 0:01:35.7]}
62. Rd1 {[%clk 0:01:18.3]} 62... Rxd1+ {[%clk 0:01:35]} 63. Kg2 {[%clk
0:01:19.2]} 63... f3# {[%clk 0:01:35.7]} 0-1

[Event "Early-Titled-Tuesday-Blitz-April-02-2024"]
[Site "Chess.com"]
[Date "2024.04.02"]
[Round "5"]
[White "Yaacovn"]
[Black "JiaHaoxiang"]
[Result "1-0"]
[WhiteElo "2856"]
[BlackElo "2592"]
[TimeControl "180+1"]
[EndTime "8:53:58 PDT"]
[Termination "Yaacovn won by resignation"]

1. d4 {[%clk 0:03:00.1]} 1... d5 {[%clk 0:02:59.3]} 2. e3 {[%clk 0:02:59]} 2...
Nf6 {[%clk 0:02:58.6]} 3. Bd3 {[%clk 0:02:58.9]} 3... c6 {[%clk 0:02:53.8]} 4.
Nd2 {[%clk 0:02:58.7]} 4... g6 {[%clk 0:02:52]} 5. Ngf3 {[%clk 0:02:58.3]} 5...
Bg7 {[%clk 0:02:52.3]} 6. h3 {[%clk 0:02:58.8]} 6... O-O {[%clk 0:02:52.7]} 7.
O-O {[%clk 0:02:59.3]} 7... Nbd7 {[%clk 0:02:52.5]} 8. Re1 {[%clk 0:02:55.9]}
8... Re8 {[%clk 0:02:48.8]} 9. e4 {[%clk 0:02:55.8]} 9... dxe4 {[%clk
0:02:48.5]} 10. Nxe4 {[%clk 0:02:56.7]} 10... Nxe4 {[%clk 0:02:43.6]} 11. Bxe4
{[%clk 0:02:57.6]} 11... e5 {[%clk 0:02:09.2]} 12. Bg5 {[%clk 0:02:56.7]} 12...
Qb6 {[%clk 0:02:07.2]} 13. d5 {[%clk 0:02:49.4]} 13... f5 {[%clk 0:01:50.2]} 14.
dxc6 {[%clk 0:02:45.4]} 14... bxc6 {[%clk 0:01:50.1]} 15. Be3 {[%clk 0:02:28.4]}
15... Qxb2 {[%clk 0:01:44.9]} 16. Bxc6 {[%clk 0:02:25]} 16... Rb8 {[%clk
0:01:23.3]} 17. Bxd7 {[%clk 0:02:02.3]} 17... Rd8 {[%clk 0:01:22.1]} 18. Qd5+
{[%clk 0:01:34.3]} 18... Kh8 {[%clk 0:01:21.6]} 19. Ng5 {[%clk 0:01:28.3]} 19...
Rxd7 {[%clk 0:01:19.9]} 20. Nf7+ {[%clk 0:01:28.4]} 20... Rxf7 {[%clk 0:01:20]}
21. Qxf7 {[%clk 0:01:28.7]} 21... Ba6 {[%clk 0:01:00.5]} 22. Rab1 {[%clk
0:01:16.8]} 22... Qxb1 {[%clk 0:00:58.4]} 23. Rxb1 {[%clk 0:01:17.7]} 23...
Rxb1+ {[%clk 0:00:58.7]} 24. Kh2 {[%clk 0:01:18.6]} 24... Bb5 {[%clk 0:00:48.8]}
25. c4 {[%clk 0:01:11.1]} 25... Bc6 {[%clk 0:00:39.6]} 26. Qe6 {[%clk
0:01:03.1]} 1-0

[Event "Early-Titled-Tuesday-Blitz-April-02-2024"]
[Site "Chess.com"]
[Date "2024.04.02"]
[Round "5"]
[White "Imagine_Drag0n"]
[Black "VD_coach"]
[Result "1-0"]
[WhiteElo "2802"]
[BlackElo "2569"]
[TimeControl "180+1"]
[EndTime "8:53:59 PDT"]
[Termination "Imagine_Drag0n won by resignation"]

1. e4 {[%clk 0:03:00.9]} 1... Nf6 {[%clk 0:03:00.1]} 2. e5 {[%clk 0:02:59.6]}
2... Nd5 {[%clk 0:03:00]} 3. d4 {[%clk 0:03:00]} 3... d6 {[%clk 0:02:59.9]} 4.
exd6 {[%clk 0:03:00.3]} 4... cxd6 {[%clk 0:02:59.6]} 5. c4 {[%clk 0:03:00]} 5...
Nf6 {[%clk 0:02:59.7]} 6. Nc3 {[%clk 0:02:59.3]} 6... e6 {[%clk 0:02:54.4]} 7.
Nf3 {[%clk 0:02:56.1]} 7... Be7 {[%clk 0:02:54.6]} 8. Bd3 {[%clk 0:02:54.9]}
8... O-O {[%clk 0:02:54.9]} 9. O-O {[%clk 0:02:54.5]} 9... Nc6 {[%clk
0:02:54.9]} 10. Re1 {[%clk 0:02:52]} 10... a6 {[%clk 0:02:38.5]} 11. h3 {[%clk
0:02:41.1]} 11... b6 {[%clk 0:02:03.3]} 12. d5 {[%clk 0:02:37.4]} 12... exd5
{[%clk 0:02:01.9]} 13. cxd5 {[%clk 0:02:32.4]} 13... Nb4 {[%clk 0:01:52.1]} 14.
Bb1 {[%clk 0:01:47.5]} 14... Bb7 {[%clk 0:01:50.9]} 15. Bg5 {[%clk 0:01:47.6]}
15... Nbxd5 {[%clk 0:01:43.2]} 16. Nxd5 {[%clk 0:01:25.8]} 16... Nxd5 {[%clk
0:01:42.6]} 17. Bxe7 {[%clk 0:01:24]} 17... Nxe7 {[%clk 0:01:43.5]} 18. Bxh7+
{[%clk 0:01:10.9]} 18... Kxh7 {[%clk 0:01:21.9]} 19. Ng5+ {[%clk 0:01:08.9]}
19... Kg6 {[%clk 0:01:21.7]} 20. Qg4 {[%clk 0:01:01.9]} 20... f5 {[%clk
0:01:09.2]} 21. Qg3 {[%clk 0:00:44.3]} 21... f4 {[%clk 0:01:01.5]} 22. Qg4
{[%clk 0:00:39.9]} 22... Nf5 {[%clk 0:00:43.9]} 23. Ne6+ {[%clk 0:00:37.8]} 1-0

[Event "Early-Titled-Tuesday-Blitz-April-02-2024"]
[Site "Chess.com"]
[Date "2024.04.02"]
[Round "5"]
[White "Witik"]
[Black "Grossboss19"]
[Result "1-0"]
[WhiteElo "2778"]
[BlackElo "2567"]
[TimeControl "180+1"]
[EndTime "8:53:59 PDT"]
[Termination "Witik won by resignation"]

1. d4 {[%clk 0:03:00.1]} 1... Nf6 {[%clk 0:02:58.9]} 2. c4 {[%clk 0:03:00.3]}
2... e6 {[%clk 0:02:56.9]} 3. g3 {[%clk 0:03:00.7]} 3... Bb4+ {[%clk 0:02:51.9]}
4. Bd2 {[%clk 0:03:00.7]} 4... Be7 {[%clk 0:02:50.4]} 5. Bg2 {[%clk 0:03:00.1]}
5... d5 {[%clk 0:02:50.7]} 6. Nf3 {[%clk 0:03:00.3]} 6... O-O {[%clk 0:02:50.2]}
7. O-O {[%clk 0:03:01]} 7... Nbd7 {[%clk 0:02:43.8]} 8. Qb3 {[%clk 0:02:56.3]}
8... c6 {[%clk 0:02:43.1]} 9. Rc1 {[%clk 0:02:55.7]} 9... Ne4 {[%clk 0:02:38.2]}
10. Be1 {[%clk 0:02:48.4]} 10... f5 {[%clk 0:02:37.9]} 11. a4 {[%clk 0:02:43.7]}
11... g5 {[%clk 0:02:33.3]} 12. a5 {[%clk 0:02:41.3]} 12... g4 {[%clk
0:02:32.8]} 13. Nfd2 {[%clk 0:02:41.7]} 13... a6 {[%clk 0:02:28.3]} 14. Nc3
{[%clk 0:02:37.8]} 14... Ndf6 {[%clk 0:02:27.7]} 15. f3 {[%clk 0:02:27.8]} 15...
Nd6 {[%clk 0:02:20.6]} 16. Na4 {[%clk 0:02:15.7]} 16... Rf7 {[%clk 0:02:12.1]}
17. Nb6 {[%clk 0:02:13.7]} 17... Rb8 {[%clk 0:02:11.3]} 18. c5 {[%clk
0:01:49.6]} 18... Nb5 {[%clk 0:02:08.2]} 19. e3 {[%clk 0:01:49.5]} 19... Bf8
{[%clk 0:02:05.4]} 20. fxg4 {[%clk 0:01:43.4]} 20... Nxg4 {[%clk 0:02:03.4]} 21.
h3 {[%clk 0:01:37.4]} 21... Nf6 {[%clk 0:01:58.8]} 22. Nf3 {[%clk 0:01:29.9]}
22... Bh6 {[%clk 0:01:55.3]} 23. Kh2 {[%clk 0:01:26.4]} 23... Ne4 {[%clk
0:01:53.4]} 24. Ne5 {[%clk 0:01:19.9]} 24... Rg7 {[%clk 0:01:53.2]} 25. Bxe4
{[%clk 0:01:15.5]} 25... dxe4 {[%clk 0:01:43.2]} 26. Bf2 {[%clk 0:01:01.4]}
26... Nc7 {[%clk 0:01:41.2]} 27. Rg1 {[%clk 0:00:59.7]} 27... Nd5 {[%clk
0:01:40.2]} 28. g4 {[%clk 0:00:59.9]} 28... f4 {[%clk 0:01:38.3]} 29. exf4
{[%clk 0:00:58.5]} 29... Bxf4+ {[%clk 0:01:32.6]} 30. Bg3 {[%clk 0:00:58.6]}
30... Bxg3+ {[%clk 0:01:26]} 31. Qxg3 {[%clk 0:00:58.2]} 31... Nxb6 {[%clk
0:01:21.2]} 32. axb6 {[%clk 0:00:55.4]} 32... Qxd4 {[%clk 0:01:21.3]} 33. Rad1
{[%clk 0:00:53.5]} 33... Qxb2+ {[%clk 0:01:10.1]} 34. Rg2 {[%clk 0:00:52.2]}
34... Qxg2+ {[%clk 0:01:05]} 35. Kxg2 {[%clk 0:00:50.6]} 35... h6 {[%clk
0:01:05.9]} 36. Rd8+ {[%clk 0:00:45.7]} 1-0

[Event "Early-Titled-Tuesday-Blitz-April-02-2024"]
[Site "Chess.com"]
[Date "2024.04.02"]
[Round "5"]
[White "m_ezat"]
[Black "Louis-Paulsen-Fan"]
[Result "1-0"]
[WhiteElo "2558"]
[BlackElo "2276"]
[TimeControl "180+1"]
[EndTime "8:54:03 PDT"]
[Termination "m_ezat won by resignation"]

1. d4 {[%clk 0:02:56.8]} 1... d5 {[%clk 0:02:59.5]} 2. c4 {[%clk 0:02:55.5]}
2... e6 {[%clk 0:02:59.7]} 3. Nc3 {[%clk 0:02:55.7]} 3... c5 {[%clk 0:02:59.4]}
4. cxd5 {[%clk 0:02:55.6]} 4... exd5 {[%clk 0:03:00.3]} 5. Nf3 {[%clk
0:02:55.7]} 5... Nc6 {[%clk 0:03:00.5]} 6. g3 {[%clk 0:02:56.2]} 6... c4 {[%clk
0:03:00.5]} 7. Bg2 {[%clk 0:02:56]} 7... Bb4 {[%clk 0:03:01]} 8. O-O {[%clk
0:02:55.9]} 8... Nge7 {[%clk 0:03:01.2]} 9. Qc2 {[%clk 0:02:24.9]} 9... O-O
{[%clk 0:02:57.6]} 10. b3 {[%clk 0:02:24.7]} 10... Bf5 {[%clk 0:02:53.6]} 11.
Qb2 {[%clk 0:02:24.1]} 11... Bxc3 {[%clk 0:02:43.5]} 12. Qxc3 {[%clk 0:02:12.8]}
12... b5 {[%clk 0:02:43.8]} 13. Ba3 {[%clk 0:02:10.7]} 13... Be4 {[%clk
0:02:30.1]} 14. Bc5 {[%clk 0:02:06.9]} 14... Re8 {[%clk 0:02:22.7]} 15. a4
{[%clk 0:02:05.7]} 15... a6 {[%clk 0:02:07.6]} 16. e3 {[%clk 0:02:02.6]} 16...
b4 {[%clk 0:01:47.9]} 17. Bxb4 {[%clk 0:02:01.3]} 17... Nxb4 {[%clk 0:01:48.1]}
18. Qxb4 {[%clk 0:02:01.4]} 18... Rb8 {[%clk 0:01:48.3]} 19. Qc5 {[%clk
0:01:59.1]} 19... Rxb3 {[%clk 0:01:47]} 20. Ne5 {[%clk 0:01:58.5]} 20... Bxg2
{[%clk 0:01:43.5]} 21. Kxg2 {[%clk 0:01:58.3]} 21... Qc8 {[%clk 0:01:31.3]} 22.
Qa5 {[%clk 0:01:57.6]} 22... f6 {[%clk 0:01:21.7]} 23. Nf3 {[%clk 0:01:57.3]}
23... Qb7 {[%clk 0:01:19.1]} 24. Nh4 {[%clk 0:01:51.2]} 24... Rb8 {[%clk
0:01:16.4]} 25. Rfc1 {[%clk 0:01:45.2]} 25... Qb6 {[%clk 0:01:12.1]} 26. Qe1
{[%clk 0:01:42.5]} 26... Rb2 {[%clk 0:01:09.1]} 27. Nf3 {[%clk 0:01:32.7]} 27...
Qe6 {[%clk 0:01:07.4]} 28. Nd2 {[%clk 0:01:20.1]} 28... Nf5 {[%clk 0:01:00.9]}
29. Rab1 {[%clk 0:01:17.6]} 29... Nxd4 {[%clk 0:00:52.4]} 30. exd4 {[%clk
0:01:09.1]} 30... Qf5 {[%clk 0:00:36.4]} 31. Rxb2 {[%clk 0:01:05.2]} 1-0